fUSD/lending_fUSD_20240322
["ID","MTS","AMOUNT","RATE_DAILY","PERIOD"]
[320082500,1711140642698,-500.0,0.00021917,2]
[320082502,1711140642708,-827.1,0.00021917,2]
[320082504,1711140642717,-1836.87,0.00021917,2]
[320082507,1711140642727,-500.0,0.00021917,2]
[320082509,1711140642738,-4471.95,0.00021917,2]
[320082511,1711140642747,-500.0,0.00021917,2]
[320082513,1711140642756,-2160.54,0.00021917,2]
[320082514,1711140642767,-3352.36,0.00021917,2]
[320082516,1711140642776,-500.0,0.00021917,2]
[320082518,1711140642785,-500.0,0.00021917,2]
[320082520,1711140642794,-3498.31,0.00021917,2]
[320082523,1711140642804,-1167.65,0.00021917,2]
[320082524,1711140642813,-1238.89,0.00021917,2]
[320082527,1711140642823,-500.0,0.00021917,2]
[320082528,1711140642832,-1183.33,0.00021917,2]
[320082530,1711140642842,-2155.45,0.00021917,2]
[320082533,1711140642851,-500.0,0.00021917,2]
[320082534,1711140642860,-581.87,0.00021917,2]
[320082536,1711140642869,-500.0,0.00021917,2]
[320082538,1711140642879,-3373.89,0.00021917,2]
[320082541,1711140642888,-500.0,0.00021917,2]
[320082542,1711140642898,-500.0,0.00021917,2]
[320082544,1711140642907,-829.9,0.00021917,2]
[320082546,1711140642916,-2595.82,0.00021917,2]
[320082549,1711140642926,-7198.0,0.00021917,2]
[320082550,1711140642935,-1472.16,0.00021917,2]
[320082552,1711140642945,-500.0,0.00021917,2]
[320082555,1711140642955,-501.3798765,0.00021917,2]
[320082557,1711140642965,-847.49,0.00021917,2]
[320082559,1711140642974,-500.0,0.00021917,2]
[320082560,1711140642983,-2743.89,0.00021917,2]
[320082562,1711140642992,-2119.09,0.00021917,2]
[320082564,1711140643002,-500.0,0.00021917,2]
[320082566,1711140643011,-500.0,0.00021917,2]
[320082568,1711140643021,-1025.09,0.00021917,2]
[320082570,1711140643030,-1332.13,0.00021917,2]
[320082572,1711140643039,-500.0,0.00021917,2]
[320082574,1711140643048,-2765.24,0.00021917,2]
[320082576,1711140643057,-500.0,0.00021917,2]
[320082578,1711140643066,-500.0,0.00021917,2]
[320082581,1711140643075,-2367.63,0.00021917,2]
[320082584,1711140643085,-500.0,0.00021917,2]
[320082587,1711140643094,-499.75687238,0.00021917,2]
[320082590,1711140643103,-299.74372197,0.00021917,2]
[320082593,1711140643112,-500.0,0.00021917,2]
[320082596,1711140643121,-500.0,0.00021917,2]
[320082598,1711140643130,-500.86133654,0.00021917,2]
[320082600,1711140643140,-3991.53,0.00021917,2]
[320082603,1711140643149,-5085.83,0.00021917,2]
[320082604,1711140643158,-500.0,0.00021917,2]
[320082607,1711140643167,-703.88,0.00021917,2]
[320082610,1711140643176,-2285.05,0.00021917,2]
[320082615,1711140643185,-500.0,0.00021917,2]
[320082619,1711140643194,-1911.1,0.00021917,2]
[320082621,1711140643204,-1277.39,0.00021917,2]
[320082623,1711140643212,-500.0,0.00021917,2]
[320082625,1711140643221,-493.58738565,0.00021917,2]
[320082627,1711140643230,-500.0,0.00021917,2]
[320082628,1711140643239,-500.0,0.00021917,2]
[320082630,1711140643248,-1031.82,0.00021917,2]
[320082633,1711140643258,-500.0,0.00021917,2]
[320082635,1711140643267,-1782.96,0.00021917,2]
[320082637,1711140643276,-500.0,0.00021917,2]
[320082639,1711140643285,-500.0,0.00021917,2]
[320082640,1711140643294,-506.11068925,0.00021917,2]
[320082642,1711140643303,-4768.65,0.00021917,2]
[320082644,1711140643312,-500.0,0.00021917,2]
[320082646,1711140643321,-612.00305067,0.00021917,2]
[320082648,1711140643330,-951.96,0.00021917,2]
[320082650,1711140643340,-3389.67,0.00021917,2]
[320082652,1711140643349,-2159.61,0.00021917,2]
[320082654,1711140643359,-500.0,0.00021917,2]
[320082656,1711140643368,-1642.79,0.00021917,2]
[320082658,1711140643377,-500.0,0.00021917,2]
[320082661,1711140643389,-1161.22,0.00021917,2]
[320082663,1711140643398,-500.0,0.00021917,2]
[320082665,1711140643407,-528.99,0.00021917,2]
[320082667,1711140643416,-500.0,0.00021917,2]
[320082669,1711140643426,-500.0,0.00021917,2]
[320082670,1711140643435,-500.0,0.00021917,2]
[320082671,1711140643444,-500.0,0.00021917,2]
[320082672,1711140643453,-500.0,0.00021917,2]
[320082673,1711140643462,-1058.46,0.00021917,2]
[320082674,1711140643472,-2196.23,0.00021917,2]
[320082675,1711140643482,-1564.14,0.00021917,2]
[320082676,1711140643491,-1777.57,0.00021917,2]
[320082677,1711140643501,-1296.83,0.00021917,2]
[320082678,1711140643510,-1712.71,0.00021917,2]
[320082679,1711140643521,-500.0,0.00021917,2]
[320082680,1711140643530,-500.0,0.00021917,2]
[320082681,1711140643539,-500.0,0.00021917,2]
[320082682,1711140643549,-4528.17,0.00021917,2]
[320082683,1711140643559,-500.0,0.00021917,2]
[320082684,1711140643568,-500.0,0.00021917,2]
[320082685,1711140643577,-500.0,0.00021917,2]
[320082686,1711140643586,-583.35,0.00021917,2]
[320082687,1711140643595,-733.51,0.00021917,2]
[320082688,1711140643604,-500.0,0.00021917,2]
[320082689,1711140643613,-238.25,0.00021918,2]
[320082690,1711140643622,-150.0,0.00021918,2]
[320082691,1711140643631,-1000.0,0.00021918,3]
[320082692,1711140643641,-250.0,0.00021918,2]
[320082693,1711140643650,-1286.76,0.00021918,10]
[320082694,1711140643659,-643.74221686,0.00022,2]
[320082695,1711140643668,-780.27085357,0.00022,2]
[320082696,1711140643678,-295.88136777,0.00022091,2]
[320082697,1711140643687,-171.5974988,0.00022091,2]
[320082698,1711140643697,-429.39026826,0.00022091,2]
[320082699,1711140643706,-402.20251014,0.00022091,5]
[320082700,1711140643716,-4321.75321071,0.00022141,2]
[320082701,1711140643725,-4685.18234357,0.00022187,20]
[320082702,1711140643735,-500.0,0.00022187,2]
[320082703,1711140643744,-500.0,0.00022187,2]
[320082704,1711140643754,-500.0,0.00022187,2]
[320082705,1711140643763,-500.0,0.00022187,2]
[320082706,1711140643775,-500.0,0.00022187,2]
[320082707,1711140643784,-500.0,0.00022187,2]
[320082708,1711140643794,-500.0,0.00022187,2]
[320082709,1711140643803,-500.0,0.00022187,2]
[320082710,1711140643812,-500.0,0.00022187,2]
[320082711,1711140643822,-500.0,0.00022187,2]
[320082712,1711140643831,-500.0,0.00022187,2]
[320082713,1711140643842,-500.0,0.00022187,2]
[320082714,1711140643852,-500.0,0.00022187,2]
[320082715,1711140643861,-500.0,0.00022187,2]
[320082716,1711140643870,-500.0,0.00022187,2]
[320082717,1711140643879,-500.0,0.00022187,2]
[320082718,1711140643888,-500.0,0.00022187,2]
[320082719,1711140643896,-500.0,0.00022187,2]
[320082720,1711140643905,-500.0,0.00022187,2]
[320082721,1711140643914,-500.0,0.00022187,2]
[320082722,1711140643923,-500.0,0.00022187,2]
[320082723,1711140643933,-500.0,0.00022187,2]
[320082724,1711140643942,-500.0,0.00022187,2]
[320082725,1711140643951,-500.0,0.00022187,2]
[320082726,1711140643960,-500.0,0.00022187,2]
[320082727,1711140643969,-500.0,0.00022187,2]
[320082728,1711140643978,-500.0,0.00022187,2]
[320082729,1711140643988,-500.0,0.00022187,2]
[320082730,1711140643997,-500.0,0.00022187,2]
[320082731,1711140644006,-500.0,0.00022187,2]
[320082732,1711140644015,-500.0,0.00022187,2]
[320082733,1711140644026,-500.0,0.00022187,2]
[320082734,1711140644035,-500.0,0.00022187,2]
[320082735,1711140644045,-500.0,0.00022187,2]
[320082736,1711140644054,-500.0,0.00022187,2]
[320082737,1711140644063,-500.0,0.00022187,2]
[320082738,1711140644072,-500.0,0.00022187,2]
[320082739,1711140644082,-500.0,0.00022187,2]
[320082740,1711140644090,-500.0,0.00022187,2]
[320082741,1711140644099,-500.0,0.00022187,2]
[320082742,1711140644108,-500.0,0.00022187,2]
[320082743,1711140644118,-500.0,0.00022187,2]
[320082744,1711140644126,-500.0,0.00022187,2]
[320082745,1711140644136,-500.0,0.00022187,2]
[320082746,1711140644145,-500.0,0.00022187,2]
[320082747,1711140644154,-500.0,0.00022187,2]
[320082748,1711140644162,-500.0,0.00022187,2]
[320082749,1711140644171,-500.0,0.00022187,2]
[320082750,1711140644180,-500.0,0.00022187,2]
[320082751,1711140644189,-500.0,0.00022187,2]
[320082752,1711140644198,-500.0,0.00022187,2]
[320082753,1711140644208,-500.0,0.00022187,2]
[320082754,1711140644217,-500.0,0.00022187,2]
[320082755,1711140644226,-500.0,0.00022187,2]
[320082756,1711140644235,-500.0,0.00022187,2]
[320082757,1711140644244,-727.0,0.00022188,2]
[320082758,1711140644254,-1630.63,0.00022188,2]
[320082759,1711140644264,-1938.31,0.00022188,2]
[320082760,1711140644278,-1724.17,0.00022188,2]
[320082761,1711140644287,-2578.64,0.00022188,2]
[320082762,1711140644297,-1943.85,0.00022188,2]
[320082763,1711140644306,-2822.34,0.00022188,2]
[320082764,1711140644316,-4731.83,0.00022188,2]
[320082765,1711140644325,-2716.96,0.00022188,2]
[320082766,1711140644334,-15614.36,0.00022188,2]
[320082767,1711140644343,-6827.64,0.00022188,2]
[320082768,1711140644352,-1279.4,0.00022188,2]
[320082769,1711140644362,-2407.06,0.00022188,2]
[320082770,1711140644371,-9278.23,0.00022188,2]
[320082771,1711140644380,-2567.37,0.00022188,2]
[320082772,1711140644391,-3518.01,0.00022188,2]
[320082773,1711140644400,-3910.49946381,0.00022189,2]
[320082774,1711140644410,-168819.42656532,0.00022189,2]
[320082775,1711140645022,-5897.97876645,0.00022189,2]
[320082776,1711140645034,-48847.5,0.00022189,2]
[320082777,1711140645045,-156890.35581119,0.00022189,2]
[320082778,1711140645057,-1725.47009482,0.00022189,2]
[320082779,1711140645069,-381.83683701,0.00022189,2]
[320082780,1711140645081,-517.638994,0.00022189,2]
[320082781,1711140645098,-994.86951933,0.00022189,2]
[320082782,1711140645110,-557.07764247,0.00022189,2]
[320082783,1711140645122,-5343.05511992,0.00022189,2]
[320082784,1711140645137,-462.26616657,0.00022189,2]
[320082785,1711140645149,-648.12882621,0.00022189,2]
[320082786,1711140645168,-11385.22222117,0.00022189,2]
[320082787,1711140645179,-1869.77078087,0.00022189,2]
[320082788,1711140645191,-1215.07590594,0.00022189,2]
[320082789,1711140645225,-300.0,0.00022187,2]
[320082790,1711140645251,-200.0,0.00022187,2]
[320082791,1711140645260,-1479.06194262,0.00022189,2]
[320082823,1711140646751,-1918.9136614,0.00019723,2]
[320082824,1711140646783,-709.35638914,0.00019723,2]
[320082825,1711140646795,-4823.6788109,0.00019723,2]
[320082826,1711140646805,-500.0,0.00021917,2]
[320082827,1711140646814,-500.0,0.00021917,2]
[320082828,1711140646822,-505.9122871,0.00021917,2]
[320082829,1711140646832,-5049.62,0.00021917,2]
[320082830,1711140646841,-564.04,0.00021917,2]
[320082831,1711140646851,-500.0,0.00022187,2]
[320082832,1711140646860,-500.0,0.00022187,2]
[320082833,1711140646870,-500.0,0.00022187,2]
[320082834,1711140646879,-500.0,0.00022187,2]
[320082835,1711140646888,-500.0,0.00022187,2]
[320082836,1711140646897,-500.0,0.00022187,2]
[320082837,1711140646906,-500.0,0.00022187,2]
[320082838,1711140646915,-500.0,0.00022187,2]
[320082839,1711140646924,-500.0,0.00022187,2]
[320082840,1711140646934,-500.0,0.00022187,2]
[320082841,1711140646942,-500.0,0.00022187,2]
[320082842,1711140646952,-500.0,0.00022187,2]
[320082843,1711140646961,-500.0,0.00022187,2]
[320082844,1711140646971,-500.0,0.00022187,2]
[320082845,1711140646981,-66381.17434469,0.00022189,2]
[320082846,1711140646992,-15253.49592422,0.00022189,2]
[320082847,1711140650047,-513.18500005,0.00019098,2]
[320082848,1711140650065,-944.71230827,0.00019098,2]
[320082849,1711140650075,-573.57,0.00021917,2]
[320082850,1711140650084,-5025.2,0.00021917,2]
[320082851,1711140650094,-45579.76,0.00021917,2]
[320082852,1711140650104,-500.0,0.00022187,2]
[320082853,1711140650115,-500.0,0.00022187,2]
[320082854,1711140650126,-500.0,0.00022187,2]
[320082855,1711140650136,-500.0,0.00022187,2]
[320082856,1711140650146,-500.0,0.00022187,2]
[320082857,1711140650155,-500.0,0.00022187,2]
[320082858,1711140650165,-500.0,0.00022187,2]
[320082859,1711140650175,-500.0,0.00022187,2]
[320082860,1711140650184,-500.0,0.00022187,2]
[320082861,1711140650194,-500.0,0.00022187,2]
[320082862,1711140650203,-500.0,0.00022187,2]
[320082863,1711140650213,-500.0,0.00022187,2]
[320082864,1711140650222,-516184.92380693,0.00022189,2]
[320082865,1711140650259,-1332.48730668,0.00022189,2]
[320082866,1711140650273,-698.18283776,0.00022189,2]
[320082867,1711140650286,-549.6,0.00022189,2]
[320082868,1711140650297,-501.7,0.00022189,2]
[320082869,1711140650309,-12935.54063599,0.00022189,2]
[320082870,1711140650336,-500.0,0.00022187,2]
[320082871,1711140650346,-617.6600003,0.00022189,2]
[320082872,1711140650372,-9517.24234081,0.00022189,2]
[320082873,1711140650384,-1217.50675063,0.00022189,2]
[320082874,1711140650407,-32854.94216393,0.00022189,2]
[320082875,1711140650419,-1522.58277384,0.00022189,2]
[320082876,1711140650447,-7170.01171002,0.00022189,2]
[320082877,1711140650463,-91311.82162885,0.00022189,2]
[320082878,1711140650475,-301.73500002,0.00022189,2]
[320082879,1711140650487,-6638.88093999,0.00022189,2]
[320082880,1711140651278,-534.03075904,0.00021916,2]
[320082881,1711140651288,-500.0,0.00021917,2]
[320082882,1711140651299,-500.0,0.00021917,2]
[320082883,1711140651309,-500.0,0.00022187,2]
[320082884,1711140651319,-500.0,0.00022187,2]
[320082885,1711140651328,-500.0,0.00022187,2]
[320082886,1711140651337,-500.0,0.00022187,2]
[320082887,1711140651346,-500.0,0.00022187,2]
[320082888,1711140651356,-500.0,0.00022187,2]
[320082889,1711140651367,-500.0,0.00022187,2]
[320082890,1711140651377,-500.0,0.00022187,2]
[320082891,1711140651389,-1655.46125101,0.00022189,2]
[320082892,1711140697691,3697.08093297,0.00011,2]
[320082900,1711141042568,-1200.0,0.00024,25]
[320082901,1711141042599,-550.0,0.00024,15]
[320082902,1711141042791,-1200.0,0.00025,26]
[320082903,1711141042814,-1565.32359162,0.00025,30]
[320082904,1711141042838,-550.0,0.00025,17]
[320082905,1711141042863,-1505.15077352,0.00025,26]
[320082906,1711141042887,-413.61735257,0.00025,30]
[320082907,1711141042981,-1430.32,0.00025711,30]
[320082908,1711141043005,-229.0,0.0002573,17]
[320082909,1711141043030,-541.79800758,0.0002574,15]
[320082910,1711141043082,-1200.0,0.00026,27]
[320082911,1711141043107,-550.0,0.00026,18]
[320082912,1711141043234,-1200.0,0.00027,28]
[320082913,1711141043257,-550.0,0.00027,27]
[320082914,1711141043303,-211.45725998,0.0002739,25]
[320082915,1711141043326,-211.55029564,0.0002739,30]
[320082916,1711141043354,-500.0,0.00027397,30]
[320082917,1711141043378,-282.5946634,0.00027397,30]
[320082918,1711141043446,-229.0,0.0002771,21]
[320082919,1711141043493,-400.0,0.00028,28]
[320082920,1711141043520,-1200.0,0.00028,29]
[320082921,1711141043567,-697.97682654,0.000285,30]
[320082922,1711141043597,-1200.0,0.00029,30]
[320082923,1711141043620,-550.0,0.00029,30]
[320082924,1711141043642,-54853.47933334,0.00029,30]
[320082925,1711141043665,-6022.12183261,0.00029,30]
[320082926,1711141043689,-388.0,0.00029,17]
[320082927,1711141043716,-388.0,0.000295,18]
[320082928,1711141043742,-229.0,0.0002969,25]
[320082929,1711141043769,-714.08515225,0.0003,30]
[320082930,1711141043792,-550.0,0.0003,30]
[320082931,1711141043815,-2111.0,0.0003,30]
[320082932,1711141043839,-388.0,0.0003,18]
[320082933,1711141044166,-396.39989166,0.000305,30]
[320082934,1711141044193,-388.0,0.000305,19]
[320082935,1711141044217,-877.73177569,0.000309,30]
[320082936,1711141044247,-500.0,0.00031,30]
[320082937,1711141044271,-500.0,0.00031,30]
[320082938,1711141044294,-500.0,0.00031,30]
[320082939,1711141044317,-500.34245076,0.00031,30]
[320082940,1711141044340,-388.0,0.00031,19]
[320082941,1711141044367,-427.846222,0.00031,30]
[320082942,1711141044391,-388.0,0.000315,20]
[320082943,1711141044413,-229.0,0.0003167,29]
[320082944,1711141044438,-550.0,0.00032,32]
[320082945,1711141044462,-388.0,0.00032,20]
[320082946,1711141044486,-388.0,0.000325,21]
[320082947,1711141044516,-150.0,0.00032877,30]
[320082948,1711141044539,-150.0,0.00032877,30]
[320082949,1711141044562,-150.0,0.00032877,30]
[320082950,1711141044584,-150.0,0.00032877,30]
[320082951,1711141044611,-150.0,0.00032877,30]
[320082952,1711141044633,-150.0,0.00032877,30]
[320082953,1711141044656,-150.0,0.00032877,30]
[320082954,1711141044679,-150.0,0.00032877,30]
[320082955,1711141044702,-150.0,0.00032877,30]
[320082956,1711141044725,-150.0,0.00032877,30]
[320082957,1711141044748,-150.0,0.00032877,30]
[320082958,1711141044770,-150.0,0.00032877,30]
[320082959,1711141044793,-150.0,0.00032877,30]
[320082960,1711141044817,-150.0,0.00032877,30]
[320082961,1711141044842,-150.0,0.00032877,30]
[320082962,1711141044866,-150.0,0.00032877,30]
[320082963,1711141044889,-150.0,0.00032877,30]
[320082964,1711141044911,-150.0,0.00032877,30]
[320082965,1711141044935,-150.0,0.00032877,30]
[320082966,1711141044958,-150.0,0.00032877,30]
[320082967,1711141044979,-150.0,0.00032877,30]
[320082968,1711141045003,-150.0,0.00032877,30]
[320082969,1711141045028,-150.0,0.00032877,30]
[320082970,1711141045050,-150.0,0.00032877,30]
[320082971,1711141045073,-150.0,0.00032877,30]
[320082972,1711141045095,-150.0,0.00032877,30]
[320082973,1711141045119,-150.0,0.00032877,30]
[320082974,1711141045142,-150.0,0.00032877,30]
[320082975,1711141045165,-150.0,0.00032877,30]
[320082976,1711141045188,-150.0,0.00032877,30]
[320082977,1711141045211,-150.0,0.00032877,30]
[320082978,1711141045234,-150.0,0.00032877,30]
[320082979,1711141045256,-150.0,0.00032877,30]
[320082980,1711141045279,-150.0,0.00032877,30]
[320082981,1711141045303,-150.0,0.00032877,30]
[320082982,1711141045325,-150.0,0.00032877,30]
[320082983,1711141045351,-150.0,0.00032877,30]
[320082984,1711141045373,-150.0,0.00032877,30]
[320082985,1711141045395,-150.0,0.00032877,30]
[320082986,1711141045418,-150.0,0.00032877,30]
[320082987,1711141045441,-150.0,0.00032877,30]
[320082988,1711141045466,-150.0,0.00032877,30]
[320082989,1711141045489,-150.0,0.00032877,30]
[320082990,1711141045514,-150.0,0.00032877,30]
[320082991,1711141045537,-150.0,0.00032877,30]
[320082992,1711141045560,-150.0,0.00032877,30]
[320082993,1711141045587,-150.0,0.00032877,30]
[320082994,1711141045614,-150.0,0.00032877,30]
[320082995,1711141045638,-150.0,0.00032877,30]
[320082996,1711141045664,-150.0,0.00032877,30]
[320082997,1711141045687,-150.0,0.00032877,30]
[320082998,1711141045711,-150.0,0.00032877,30]
[320082999,1711141045733,-150.0,0.00032877,30]
[320083000,1711141045758,-150.0,0.00032877,30]
[320083001,1711141045782,-150.0,0.00032877,30]
[320083002,1711141045806,-150.0,0.00032877,30]
[320083003,1711141045829,-150.0,0.00032877,30]
[320083004,1711141045857,-150.0,0.00032877,30]
[320083005,1711141045882,-150.0,0.00032877,30]
[320083006,1711141045907,-150.0,0.00032877,30]
[320083007,1711141045929,-150.0,0.00032877,30]
[320083008,1711141045953,-150.0,0.00032877,30]
[320083009,1711141045976,-150.0,0.00032877,30]
[320083010,1711141045999,-150.0,0.00032877,30]
[320083011,1711141046022,-150.0,0.00032877,30]
[320083012,1711141046045,-150.0,0.00032877,30]
[320083013,1711141046070,-150.0,0.00032877,30]
[320083014,1711141046093,-150.0,0.00032877,30]
[320083015,1711141046121,-150.0,0.00032877,30]
[320083016,1711141046144,-150.0,0.00032877,30]
[320083017,1711141046168,-150.0,0.00032877,30]
[320083018,1711141046192,-150.0,0.00032877,30]
[320083019,1711141046215,-150.0,0.00032877,30]
[320083020,1711141046239,-150.0,0.00032877,30]
[320083021,1711141046263,-150.0,0.00032877,30]
[320083022,1711141046286,-150.0,0.00032877,30]
[320083023,1711141046309,-150.0,0.00032877,30]
[320083024,1711141046332,-150.0,0.00032877,30]
[320083025,1711141046357,-150.0,0.00032877,30]
[320083026,1711141046380,-150.0,0.00032877,30]
[320083027,1711141046402,-150.0,0.00032877,30]
[320083028,1711141046424,-150.0,0.00032877,30]
[320083029,1711141046447,-150.0,0.00032877,30]
[320083030,1711141046470,-150.0,0.00032877,30]
[320083031,1711141046493,-150.0,0.00032877,30]
[320083032,1711141046520,-150.0,0.00032877,30]
[320083033,1711141046545,-150.0,0.00032877,30]
[320083034,1711141046566,-150.0,0.00032877,30]
[320083035,1711141046593,-150.0,0.00032877,30]
[320083036,1711141046618,-150.0,0.00032877,30]
[320083037,1711141046848,-150.0,0.00032877,30]
[320083038,1711141046871,-150.0,0.00032877,30]
[320083039,1711141046893,-150.0,0.00032877,30]
[320083040,1711141046916,-150.0,0.00032877,30]
[320083041,1711141046938,-150.0,0.00032877,30]
[320083042,1711141046961,-150.0,0.00032877,30]
[320083043,1711141046983,-150.0,0.00032877,30]
[320083044,1711141047006,-150.0,0.00032877,30]
[320083045,1711141047030,-150.0,0.00032877,30]
[320083046,1711141047052,-150.0,0.00032877,30]
[320083047,1711141047075,-430.00506103,0.000329,30]
[320083048,1711141047098,-500.0,0.00033,30]
[320083049,1711141047124,-388.0,0.00033,22]
[320083050,1711141047149,-388.0,0.000335,22]
[320083051,1711141047173,-229.0,0.0003365,33]
[320083052,1711141047199,-550.0,0.00034,36]
[320083053,1711141047221,-10104.0,0.00034,30]
[320083054,1711141047243,-388.0,0.00034,23]
[320083055,1711141047266,-152.0,0.0003434,15]
[320083056,1711141047288,-1000.0,0.000344,30]
[320083057,1711141047311,-503.473895,0.000345,23]
[320083058,1711141047334,-152.0,0.00034914,16]
[320083059,1711141047359,-100000.0,0.00035,15]
[320083060,1711141047382,-60000.0,0.00035,35]
[320083061,1711141047407,-152.0,0.00035488,17]
[320083062,1711141047430,-151.032215,0.00035498,15]
[320083063,1711141047453,-229.0,0.0003564,37]
[320083064,1711141047478,-100000.0,0.00036,16]
[320083065,1711141047504,-458.7445193,0.00036,36]
[320083066,1711141047527,-152.0,0.00036063,18]
[320083067,1711141047551,-154.34,0.00036438,46]
[320083068,1711141047573,-154.34,0.00036438,90]
[320083069,1711141047601,-153.48852243,0.0003646,17]
[320083070,1711141047627,-151.032215,0.00036498,16]
[320083071,1711141047650,-160.62308712,0.00036521,30]
[320083072,1711141047674,-152.0,0.00036637,19]
[320083073,1711141047700,-160.62308712,0.00036986,30]
[320083074,1711141047723,-160.6230871,0.00036986,30]
[320083075,1711141047747,-100000.0,0.00037,17]
[320083076,1711141047769,-60000.0,0.00037,30]
[320083077,1711141047794,-152.0,0.00037211,20]
[320083078,1711141047817,-153.48852243,0.0003746,21]
[320083079,1711141047842,-151.032215,0.00037498,17]
[320083080,1711141047872,-229.0,0.0003762,41]
[320083081,1711141047896,-152.0,0.00037785,21]
[320083082,1711141047921,-100000.0,0.00038,18]
[320083083,1711141047943,-1011.42061219,0.00038,40]
[320083084,1711141047965,-308.25109614,0.00038,40]
[320083085,1711141047987,-2000.0,0.00038,16]
[320083086,1711141048011,-152.0,0.0003836,22]
[320083087,1711141048035,-153.48852243,0.0003846,26]
[320083088,1711141048060,-151.032215,0.00038498,28]
[320083089,1711141048083,-152.0,0.00038934,23]
[320083090,1711141048109,-100000.0,0.00039,19]
[320083091,1711141048132,-10000.0,0.00039,20]
[320083092,1711141048154,-2000.0,0.00039,16]
[320083093,1711141048177,-1000.0,0.00039,120]
[320083094,1711141048201,-153.48852243,0.0003946,30]
[320083095,1711141048225,-151.032215,0.00039498,29]
[320083096,1711141048247,-152.0,0.00039508,24]
[320083097,1711141048273,-229.0,0.000396,45]
[320083098,1711141048296,-200000.0,0.0004,30]
[320083099,1711141048319,-202.82298892,0.0004,60]
[320083100,1711141048343,-10972.05174753,0.0004,15]
[320083101,1711141048368,-175.36692379,0.0004,30]
[320083102,1711141048389,-61.70777031,0.0004,120]
[320083103,1711141048411,-308.25109614,0.0004,40]
[320083104,1711141048434,-1200.0,0.0004,120]
[320083105,1711141048455,-2000.0,0.0004,30]
[320083106,1711141048478,-242.36,0.0004,60]
[320083107,1711141048503,-250.0,0.0004,30]
[320083108,1711141048525,-2752.97126045,0.0004,120]
[320083109,1711141048548,-890.0,0.0004,15]
[320083110,1711141048572,-806.36106218,0.0004,120]
[320083111,1711141048599,-943.0,0.0004,120]
[320083112,1711141048623,-477.12749073,0.0004,30]
[320083113,1711141048645,-327.75990801,0.0004,120]
[320083114,1711141048669,-2110.0,0.0004,15]
[320083115,1711141048693,-2000.0,0.0004,30]
[320083116,1711141048716,-1413.0,0.0004,30]
[320083117,1711141048740,-540.47136743,0.0004,120]
[320083118,1711141048762,-13143.0,0.0004,60]
[320083119,1711141048785,-165.18915039,0.00040082,30]
[320083120,1711141048808,-152.02382033,0.00040082,30]
[320083121,1711141048831,-152.0,0.00040082,25]
[320083122,1711141048855,-152.78766685,0.00040199,30]
[320083123,1711141048880,-847.03497982,0.00040232,30]
[320083124,1711141048903,-154.62857147,0.00040272,30]
[320083125,1711141048925,-159.94999475,0.00040308,30]
[320083126,1711141048954,-153.48852243,0.0004046,35]
[320083127,1711141048978,-237.01182816,0.00040477,30]
[320083128,1711141049002,-151.032215,0.00040498,40]